bitfinex-derivatives/quotes_BTCF0:USTF0_20250209
["timestamp","ask_amount","ask_price","bid_price","bid_amount"]
[1739095233550,0.2062698,96936.0,96928.0,0.36136]
[1739095233751,0.2062698,96936.0,96934.0,0.206274]
[1739095233961,0.2062698,96936.0,96931.0,0.0321]
[1739095234751,0.2072698,96936.0,96931.0,0.0321]
[1739095234954,0.2082698,96936.0,96932.0,0.0311]
[1739095235467,0.2082698,96936.0,96932.0,0.2373776]
[1739095237958,0.25842946,96936.0,96932.0,0.2373776]
[1739095241459,0.6352951,96936.0,96932.0,0.2373776]
[1739095241761,0.6352951,96936.0,96935.0,4.899e-05]
[1739095242665,0.9960951,96936.0,96935.0,4.899e-05]
[1739095245264,0.7898253,96936.0,96935.0,0.20632089]
[1739095245566,0.4290253,96936.0,96935.0,0.20632089]
[1739095245866,0.42077295,96936.0,96935.0,0.20632089]
[1739095246658,0.27772627,96936.0,96935.0,0.20632089]
[1739095246964,0.27772627,96936.0,96935.0,0.16374462]
[1739095248059,0.10819708,96941.0,96933.0,0.0307]
[1739095248256,0.10819708,96941.0,96940.0,0.2062612]
[1739095249565,0.11119708,96941.0,96940.0,0.2062612]
[1739095249954,0.11419708,96941.0,96940.0,0.2062612]
[1739095253372,0.39736566,96941.0,96940.0,0.2062612]
[1739095257663,0.2062739,96937.0,96936.0,0.2062694]
[1739095258367,0.2062761,96933.0,96932.0,0.04136119]
[1739095258566,0.2062761,96933.0,96932.0,0.24763949]
[1739095261581,0.2062761,96933.0,96932.0,0.2373783]
[1739095262080,0.2062889,96927.0,96926.0,0.0001547]
[1739095262285,0.5670889,96927.0,96926.0,0.0001547]
[1739095263974,0.5670889,96927.0,96926.0,0.2064457]
[1739095264275,0.2062827,96932.0,96931.0,0.2062783]
[1739095264673,0.2062889,96927.0,96926.0,0.0061547]
[1739095265572,0.2062889,96927.0,96926.0,0.0031547]
[1739095265773,0.5670889,96927.0,96926.0,0.0031547]
[1739095267080,0.72084578,96927.0,96926.0,0.0031547]
[1739095267581,0.72084578,96927.0,96926.0,0.0061547]
[1739095273387,0.2063208,96912.0,96911.0,0.2063209]
[1739095273581,0.2063208,96912.0,96911.0,0.2370209]
[1739095274683,0.2073208,96912.0,96911.0,0.2460209]
[1739095274889,0.2083208,96912.0,96911.0,0.2540209]
[1739095277084,0.2083208,96912.0,96911.0,0.2233209]
[1739095277279,0.2083208,96912.0,96911.0,0.017]
[1739095277488,0.5691208,96912.0,96911.0,0.017]
[1739095277678,0.569067,96912.0,96911.0,0.017]
[1739095278281,0.20634,96903.0,96902.0,0.00015478]
[1739095278491,0.63406,96903.0,96902.0,0.00015478]
[1739095278788,0.56714,96903.0,96902.0,0.00015478]
[1739095280787,0.56814,96903.0,96902.0,0.00415478]
[1739095281185,0.56914,96903.0,96902.0,0.00415478]
[1739095281393,0.56914,96903.0,96902.0,0.00315478]
[1739095283092,0.61932329,96903.0,96902.0,0.00315478]
[1739095283393,0.61932329,96903.0,96902.0,0.03595478]
[1739095283889,0.61932329,96903.0,96902.0,0.24229688]
[1739095284687,0.41298329,96903.0,96902.0,0.24229688]
[1739095285479,0.41298329,96903.0,96902.0,0.20949688]
[1739095286081,0.3628,96903.0,96902.0,0.20949688]
[1739095286587,0.3628,96903.0,96902.0,0.00315478]
[1739095288493,0.3628,96903.0,96902.0,0.20949688]
[1739095288685,0.3129,96903.0,96902.0,0.20949688]
[1739095289288,0.002,96903.0,96902.0,0.20949688]
[1739095293697,0.00015478,96912.0,96911.0,0.2063229]
[1739095295999,0.20647558,96912.0,96911.0,0.2063229]
[1739095296599,0.20647558,96912.0,96911.0,0.2083229]
[1739095296798,0.20647558,96912.0,96911.0,0.2093229]
[1739095298994,0.25665214,96912.0,96911.0,0.2093229]
[1739095299597,0.05033134,96912.0,96911.0,0.2093229]
[1739095299797,0.25665214,96912.0,96911.0,0.2093229]
[1739095302107,0.05033134,96912.0,96911.0,0.2093229]
[1739095303007,0.18492999,96914.0,96913.0,0.2063187]
[1739095303396,0.21612832,96925.0,96912.0,0.0307]
[1739095303705,0.21612832,96925.0,96924.0,0.2062953]
[1739095303905,0.42242142,96925.0,96924.0,0.2062953]
[1739095305807,0.2062931,96925.0,96924.0,0.2062953]
[1739095306007,0.2142931,96925.0,96924.0,0.2062953]
[1739095306506,0.008,96925.0,96924.0,0.2062953]
[1739095306921,0.2063035,96921.0,96917.0,0.2063091]
[1739095307201,0.2063035,96921.0,96912.0,0.0307]
[1739095307202,0.3608,96918.0,96900.0,0.17358991]
[1739095307407,0.2063103,96917.0,96914.0,0.2063155]
[1739095307605,0.2063132,96916.0,96915.0,0.206314]
[1739095309205,0.09322029,96917.0,96915.0,0.206314]
[1739095310702,0.2063123,96916.0,96915.0,0.206314]
[1739095312112,0.29953259,96916.0,96915.0,0.206314]
[1739095312414,0.09322029,96916.0,96915.0,0.206314]
[1739095313200,0.20634,96903.0,96902.0,0.00015478]
[1739095314908,0.2063442,96901.0,96900.0,0.00035478]
[1739095316215,0.2073442,96901.0,96900.0,0.00535478]
[1739095316815,0.2083442,96901.0,96900.0,0.00735478]
[1739095318212,0.2083442,96901.0,96900.0,0.00535478]
[1739095318422,0.2063634,96892.0,96891.0,0.00015478]
[1739095318614,0.5671634,96892.0,96891.0,0.00015478]
[1739095318918,0.6345634,96892.0,96891.0,0.00015478]
[1739095319214,0.206395,96878.0,96870.0,0.07358991]
[1739095319414,0.4282,96892.0,96875.0,0.2063994]
[1739095319415,0.2063968,96877.0,96875.0,0.2063994]
[1739095320117,0.2064252,96863.0,96862.0,0.24724668]
[1739095321122,0.2064252,96863.0,96862.0,0.16104668]
[1739095321313,0.2064401,96856.0,96855.0,0.30894513]
[1739095321621,0.6349201,96856.0,96855.0,0.30894513]
[1739095322419,0.2065083,96824.0,96823.0,0.54101284]
[1739095322626,0.06884,96824.0,96823.0,0.54101284]
[1739095322921,0.2065083,96824.0,96823.0,0.54101284]
[1739095323310,0.3608,96839.0,96823.0,0.54101284]
[1739095323622,0.00015486,96833.0,96823.0,0.54101284]
[1739095323925,0.00015486,96833.0,96831.0,0.2064929]
[1739095324314,0.00015486,96833.0,96823.0,0.54157284]
[1739095324315,0.2065083,96824.0,96823.0,0.00056]
[1739095324516,0.2065234,96817.0,96809.0,0.2065392]
[1739095324811,0.5673275,96815.0,96799.0,0.30884017]
[1739095325220,0.6368475,96815.0,96799.0,0.51540007]
[1739095325724,0.6368475,96815.0,96800.0,0.17358991]
[1739095326024,0.5673275,96815.0,96800.0,0.1]
[1739095327214,0.6368875,96815.0,96800.0,0.1]
[1739095327407,0.3608,96815.0,96813.0,0.2065311]
[1739095327611,0.36140001,96824.0,96823.0,0.2065105]
[1739095327811,0.2065275,96815.0,96814.0,0.00010381]
[1739095328009,0.5673275,96815.0,96814.0,0.00010381]
[1739095328215,0.3608,96815.0,96814.0,0.00010381]
[1739095328415,0.3608,96815.0,96814.0,0.20663351]
[1739095329226,0.261,96815.0,96814.0,0.20663351]
[1739095329433,0.3648,96824.0,96823.0,0.2065105]
[1739095329920,0.004,96824.0,96823.0,0.2065105]
[1739095330821,0.18306996,96829.0,96828.0,0.2064998]
[1739095332119,0.004,96829.0,96825.0,0.2065047]
[1739095332319,0.2154993,96829.0,96825.0,0.2065047]
[1739095332917,0.2154993,96829.0,96821.0,0.35032341]
[1739095333117,0.2114993,96829.0,96821.0,0.35032341]
[1739095333419,0.008,96829.0,96827.0,0.2065014]
[1739095334133,0.007,96829.0,96827.0,0.2065014]
[1739095334429,0.2065054,96826.0,96823.0,0.2065097]
[1739095334614,0.007,96829.0,96827.0,0.2065007]
[1739095334924,0.008,96829.0,96821.0,0.33983778]
[1739095335313,0.007,96829.0,96821.0,0.33983778]
[1739095335714,0.005,96829.0,96821.0,0.33983778]
[1739095336020,0.009,96829.0,96821.0,0.33983778]
[1739095336216,0.009,96829.0,96827.0,0.2065007]
[1739095336419,0.009,96829.0,96821.0,0.23635733]
[1739095336420,0.007,96829.0,96821.0,0.23635733]
[1739095337136,0.004,96829.0,96827.0,0.2065007]
[1739095338215,0.00015486,96833.0,96828.0,0.2064985]
[1739095338415,0.009,96829.0,96828.0,0.2064985]
[1739095339326,0.005,96829.0,96828.0,0.2064985]
[1739095340023,0.009,96829.0,96828.0,0.2064985]
[1739095340426,0.004,96829.0,96828.0,0.2064985]
[1739095340622,0.004,96829.0,96821.0,0.23635733]
[1739095340828,0.2065275,96815.0,96811.0,0.6314349]
[1739095341125,0.2065275,96815.0,96812.0,0.2065326]
[1739095341628,0.2065275,96815.0,96813.0,0.2065315]
[1739095341829,0.2065176,96820.0,96819.0,0.2065174]
[1739095343228,0.2075176,96820.0,96819.0,0.2065174]
[1739095343422,0.2075176,96820.0,96811.0,0.42546]
[1739095343423,0.001,96820.0,96811.0,0.42546]
[1739095343722,0.2065275,96815.0,96814.0,0.20663341]
[1739095344436,0.001,96820.0,96819.0,0.206519]
[1739095344725,0.3608,96823.0,96814.0,0.00010381]
[1739095344726,0.3608,96827.0,96814.0,0.00010381]
[1739095345027,0.2065179,96820.0,96819.0,0.2065181]
[1739095345428,0.2065275,96815.0,96814.0,0.00010381]
[1739095346631,0.2065574,96801.0,96800.0,0.1]
[1739095346828,0.5673574,96801.0,96800.0,0.1]
[1739095347629,0.2066427,96761.0,96760.0,0.3608]
[1739095348025,0.2066413,96762.0,96760.0,0.3608]
[1739095348328,0.1567413,96762.0,96760.0,0.3608]
[1739095348527,0.2066032,96780.0,96768.0,0.2066258]
[1739095348832,0.2066032,96780.0,96778.0,0.3608]
[1739095349028,0.3608,96804.0,96779.0,0.0332]
[1739095349231,0.3608,96804.0,96785.0,0.3608]
[1739095349426,0.2065779,96792.0,96786.0,0.0304]
[1739095349832,0.2065799,96791.0,96786.0,0.0304]
[1739095350332,0.00155058,96796.0,96789.0,0.2065819]
[1739095350520,0.2065711,96795.0,96786.0,0.0304]
[1739095351226,0.2065711,96795.0,96791.0,0.2065776]
[1739095351733,0.2095711,96795.0,96791.0,0.2065776]
[1739095352033,0.2065729,96794.0,96792.0,0.0328]
[1739095353231,0.008,96795.0,96793.0,0.5673744]
[1739095353432,0.3608,96817.0,96811.0,0.2065345]
[1739095353634,0.3608,96817.0,96815.0,0.2065263]
[1739095354136,0.2065254,96816.0,96815.0,0.2065263]
[1739095354834,0.3638,96817.0,96815.0,0.2065263]
[1739095355025,0.3658,96817.0,96815.0,0.2065263]
[1739095355432,0.5673235,96817.0,96815.0,0.2065263]
[1739095355623,0.5673235,96817.0,96815.0,0.2075263]
[1739095355827,0.5673235,96817.0,96815.0,0.001]
[1739095356129,0.2065353,96812.0,96810.0,0.2065377]
[1739095357926,0.005,96812.0,96806.0,0.00015495]
[1739095358129,0.5673446,96807.0,96806.0,0.00015495]
[1739095360840,0.5733446,96807.0,96806.0,0.00315495]
[1739095361429,0.5703446,96807.0,96806.0,0.00015495]
[1739095361632,0.5743446,96807.0,96806.0,0.00015495]
[1739095362033,0.5713446,96807.0,96806.0,0.00315495]
[1739095362341,0.5673446,96807.0,96806.0,0.00415495]
[1739095364342,0.74136152,96807.0,96806.0,0.00415495]
[1739095364643,0.2065723,96794.0,96753.0,0.3608]
[1739095364941,0.3608,96771.0,96753.0,0.3608]
[1739095365128,0.2066375,96764.0,96761.0,0.3608]
[1739095365333,0.2066382,96764.0,96762.0,0.0303]
[1739095365528,0.3608,96783.0,96762.0,0.10242]
[1739095365840,0.2065993,96782.0,96778.0,0.2066049]
[1739095366040,0.20675425,96782.0,96779.0,0.2399038]
[1739095366241,0.2066052,96779.0,96764.0,0.2066363]
[1739095366437,0.2066071,96778.0,96773.0,0.2066153]
[1739095366637,0.2066113,96776.0,96773.0,0.2066153]
[1739095366837,0.2066113,96776.0,96774.0,0.2066145]
[1739095367827,0.2146113,96776.0,96774.0,0.2066145]
[1739095368232,0.008,96776.0,96774.0,0.2066145]
[1739095368537,0.015,96776.0,96775.0,0.2386128]
[1739095370043,0.00015495,96782.0,96775.0,0.032]
[1739095370239,0.00015495,96782.0,96781.0,0.2066]
[1739095370739,0.00155055,96798.0,96781.0,0.6608]
[1739095370939,0.3608,96820.0,96811.0,0.2065353]
[1739095370940,0.2065219,96818.0,96811.0,0.2065353]
[1739095371139,0.3608,96820.0,96806.0,0.3608]
[1739095371346,0.2065349,96812.0,96806.0,0.2065462]
[1739095372044,0.2065349,96812.0,96811.0,0.206536]
[1739095372347,0.00015495,96819.0,96801.0,0.3608]
[1739095372647,0.2065237,96817.0,96801.0,0.3608]
[1739095373045,0.2065237,96817.0,96814.0,0.2065293]
[1739095373243,0.2065237,96817.0,96815.0,0.2065255]
[1739095373947,0.2145237,96817.0,96815.0,0.2065255]
[1739095374960,0.17643959,96816.0,96815.0,0.2065255]
[1739095375855,0.2065341,96812.0,96809.0,0.2065386]
[1739095376055,0.2065376,96811.0,96809.0,0.2065386]
[1739095377257,0.2065376,96811.0,96802.0,0.07212]
[1739095377456,0.2065376,96811.0,96810.0,0.2065381]
[1739095378657,0.2065376,96811.0,96810.0,0.2085381]
[1739095379861,0.00015495,96819.0,96816.0,0.2065235]
[1739095379862,0.2065232,96817.0,96816.0,0.2065235]
[1739095380067,0.00015495,96819.0,96810.0,0.2095368]
[1739095380369,0.00015495,96819.0,96811.0,0.2065356]
[1739095380665,0.2065322,96814.0,96813.0,0.2065306]
[1739095381566,0.3608,96788.0,96769.0,0.00052]
[1739095381772,0.3608,96798.0,96736.0,0.3608]
[1739095381773,0.7216,96770.0,96736.0,0.3608]
[1739095382064,0.7216,96770.0,96730.0,0.4794306]
[1739095382065,0.3608,96754.0,96739.0,0.0935]
[1739095382266,0.3608,96754.0,96751.0,0.01012242]
[1739095382473,0.5674577,96754.0,96751.0,0.01012242]
[1739095382859,0.3608,96754.0,96751.0,0.01012242]
[1739095384171,0.3608,96754.0,96753.0,0.00355025]
[1739095384572,0.3109,96754.0,96753.0,0.00355025]
[1739095384867,0.00015503,96763.0,96753.0,0.00355025]
[1739095385073,0.2066469,96760.0,96753.0,0.00355025]
[1739095385574,0.2066469,96760.0,96753.0,0.21021005]
[1739095385575,0.05022891,96754.0,96753.0,0.21021005]
[1739095386478,0.05022891,96754.0,96753.0,0.21321005]
[1739095386672,0.00015503,96763.0,96762.0,0.2066406]
[1739095386872,0.11066893,96790.0,96762.0,0.3608]
[1739095387071,0.2066475,96759.0,96757.0,0.07348]
[1739095388376,0.2066475,96759.0,96755.0,0.07356]
[1739095388676,0.2066475,96759.0,96755.0,0.280214]
[1739095388877,0.2066475,96759.0,96758.0,0.2066491]
[1739095389077,0.2066475,96759.0,96753.0,0.00155025]
[1739095389078,0.2066575,96755.0,96753.0,0.00155025]
[1739095389769,0.2066575,96755.0,96754.0,0.2066577]
[1739095390273,0.18416826,96759.0,96757.0,0.2066503]
[1739095392074,0.3608,96764.0,96762.0,0.2066398]
[1739095392276,0.3608,96764.0,96763.0,0.0617]
[1739095392466,0.00015503,96768.0,96763.0,0.0617]
[1739095392671,0.00015503,96768.0,96767.0,0.2066299]
[1739095393880,0.00015503,96768.0,96767.0,0.2076299]
[1739095394579,0.18416826,96784.0,96767.0,0.6618]
[1739095394784,0.18416826,96784.0,96782.0,0.2065963]
[1739095395077,0.3608,96785.0,96783.0,0.2065938]
[1739095395473,0.3608,96785.0,96781.0,0.2065995]
[1739095395678,0.3608,96785.0,96780.0,0.2066012]
[1739095395881,0.2066062,96779.0,96774.0,0.2066137]
[1739095396081,0.206615,96774.0,96773.0,0.00015503]
[1739095397187,0.002,96779.0,96775.0,0.2066123]
[1739095397491,0.002,96779.0,96773.0,0.00015503]
[1739095397492,0.002,96779.0,96777.0,0.2066084]
[1739095397784,0.206615,96774.0,96773.0,0.00015503]
[1739095398183,0.209615,96774.0,96773.0,0.00015503]
[1739095398381,0.2066535,96756.0,96752.0,0.2066609]
[1739095398585,0.3608,96766.0,96752.0,0.2803809]
[1739095398882,0.3608,96766.0,96754.0,0.2066575]
[1739095399087,0.5674555,96755.0,96738.0,0.2066903]
[1739095399285,0.2066812,96744.0,96740.0,0.2066872]
[1739095399489,0.3608,96746.0,96740.0,0.2066872]
[1739095399786,0.2066918,96739.0,96733.0,0.18514941]
[1739095399984,0.2066774,96745.0,96740.0,0.2066876]
[1739095400184,0.2066774,96745.0,96734.0,0.0332]
[1739095400385,0.2066774,96745.0,96735.0,0.07376]
[1739095400586,0.3608,96736.0,96733.0,0.19566945]
[1739095400781,0.3608,96736.0,96734.0,0.206699]
[1739095400990,0.2066776,96745.0,96739.0,0.2066884]
[1739095401286,0.2066807,96744.0,96740.0,0.2066867]
[1739095401791,0.3628,96746.0,96745.0,0.2066769]
[1739095402382,0.3618,96746.0,96745.0,0.2066769]
[1739095402583,0.3608,96746.0,96745.0,0.2066769]
[1739095403687,0.3618,96746.0,96745.0,0.2176769]
[1739095404885,0.3618,96746.0,96745.0,0.011]
[1739095407996,0.0516692,96745.0,96706.0,0.07364]
[1739095408211,0.2067199,96725.0,96719.0,0.57797571]
[1739095408990,0.0307,96728.0,96719.0,0.38024521]
[1739095409394,0.0307,96728.0,96724.0,0.2067216]
[1739095409698,0.001,96725.0,96724.0,0.2067216]
[1739095409898,0.002,96725.0,96724.0,0.2067216]
[1739095410094,0.001,96725.0,96724.0,0.2067216]
[1739095411601,0.2067167,96727.0,96724.0,0.2077216]
[1739095412405,0.2067167,96727.0,96724.0,0.2087216]
[1739095412895,0.001,96725.0,96724.0,0.2087216]
[1739095415197,0.2067189,96726.0,96724.0,0.2077216]
[1739095415402,0.001,96725.0,96724.0,0.2117216]
[1739095416109,0.002,96725.0,96724.0,0.2117216]
[1739095422505,0.2066531,96757.0,96731.0,0.2067068]
[1739095422707,0.206658,96754.0,96747.0,0.2066726]
[1739095423013,0.2066624,96752.0,96747.0,0.2066726]
[1739095423312,0.2066504,96758.0,96747.0,0.2066726]
[1739095423614,0.2066598,96753.0,96747.0,0.2066726]
[1739095424113,0.00015503,96757.0,96747.0,0.2066726]
[1739095424314,0.00015503,96757.0,96748.0,0.2066705]
[1739095424617,0.2066559,96755.0,96748.0,0.2066705]
[1739095424912,0.00015503,96757.0,96741.0,0.063]
[1739095425219,0.001,96748.0,96742.0,0.0516706]
[1739095425514,0.001,96748.0,96747.0,0.2066726]
[1739095425717,0.001,96748.0,96747.0,0.2076726]
[1739095426015,0.00015503,96757.0,96748.0,0.001]
[1739095426201,0.00015503,96757.0,96756.0,0.2066534]
[1739095426404,0.2066897,96739.0,96715.0,0.20828986]
[1739095426713,0.3608,96717.0,96715.0,0.20829036]
[1739095426917,0.3608,96717.0,96715.0,0.00155086]
[1739095427405,0.2067388,96716.0,96715.0,0.00155086]
[1739095427812,0.2067388,96716.0,96715.0,0.00755086]
[1739095429025,0.2067388,96716.0,96715.0,0.00455086]
[1739095429718,0.002,96716.0,96715.0,0.00655086]
[1739095436815,0.002,96716.0,96715.0,1.50655086]
[1739095437121,0.002,96716.0,96715.0,0.00655086]
[1739095438022,0.002,96716.0,96715.0,0.36735086]
[1739095438915,0.00015503,96726.0,96725.0,0.2067196]
[1739095440321,0.00015503,96726.0,96725.0,0.2087196]
[1739095440822,0.18449948,96736.0,96734.0,0.2066993]
[1739095442117,0.18549948,96736.0,96734.0,0.2066993]
[1739095442321,0.18549948,96736.0,96732.0,0.3608]
[1739095442517,0.18549948,96736.0,96735.0,0.2066983]
[1739095442827,0.18749948,96736.0,96735.0,0.2066983]
[1739095444122,0.18849948,96736.0,96735.0,0.2066983]
[1739095444326,0.002,96736.0,96735.0,0.2066983]
[1739095444525,0.002,96736.0,96735.0,0.2086983]
[1739095444827,0.00015503,96745.0,96743.0,0.2066809]
[1739095445011,0.00015503,96745.0,96743.0,0.2834409]
[1739095445916,0.00015503,96745.0,96744.0,0.0326]
[1739095446123,0.00015503,96745.0,96744.0,0.239279]
[1739095447211,0.17380805,96754.0,96744.0,0.0326]
[1739095447412,0.28377315,96780.0,96753.0,0.3608]
[1739095447613,0.24710785,96781.0,96745.0,1.13198]
[1739095447614,0.3608,96811.0,96785.0,0.2065915]
[1739095447824,0.3608,96811.0,96785.0,0.2835115]
[1739095447825,0.22859568,96786.0,96785.0,0.2835115]
[1739095448927,0.00015503,96795.0,96785.0,0.07692]
[1739095449224,0.2066049,96779.0,96776.0,0.07394019]
[1739095449528,0.2392084,96778.0,96776.0,0.00015503]
[1739095451414,0.2432084,96778.0,96776.0,0.00015503]
[1739095452726,0.2432084,96778.0,96777.0,0.2066085]
[1739095452727,0.2462084,96778.0,96777.0,0.2066085]
[1739095453324,0.0396,96778.0,96777.0,0.2066085]
[1739095453520,0.007,96778.0,96777.0,0.2066085]
[1739095453930,0.003,96778.0,96777.0,0.2066085]
[1739095454232,0.008,96778.0,96777.0,0.2066085]
[1739095454934,0.004,96778.0,96777.0,0.2066085]
[1739095455631,0.2065856,96788.0,96776.0,0.00015503]
[1739095455932,0.2065856,96788.0,96787.0,0.2065872]
[1739095456932,0.2105856,96788.0,96787.0,0.2065872]
[1739095457230,0.2135856,96788.0,96787.0,0.2065872]
[1739095457433,0.2095856,96788.0,96787.0,0.2065872]
[1739095457734,0.2135856,96788.0,96787.0,0.2065872]
[1739095458034,0.2105856,96788.0,96787.0,0.2065872]
[1739095458239,0.2135856,96788.0,96787.0,0.2065872]
[1739095459036,0.2095856,96788.0,96787.0,0.2065872]
[1739095459339,0.2125856,96788.0,96787.0,0.2065872]
[1739095460141,0.2095856,96788.0,96787.0,0.2065872]
[1739095460344,0.2125856,96788.0,96787.0,0.2065872]
[1739095461145,0.2135856,96788.0,96787.0,0.2065872]
[1739095464046,0.2125856,96788.0,96787.0,0.2065872]
[1739095464654,0.2095856,96788.0,96787.0,0.2065872]
[1739095464852,0.2135856,96788.0,96787.0,0.2065872]
[1739095465347,0.2145856,96788.0,96787.0,0.2065872]
[1739095465748,0.2095856,96788.0,96787.0,0.2065872]
[1739095465935,0.2135856,96788.0,96787.0,0.2065872]
[1739095466941,0.007,96788.0,96787.0,0.2065872]
[1739095467144,0.004,96788.0,96787.0,0.2065872]
[1739095467451,0.008,96788.0,96787.0,0.2065872]
[1739095468247,0.004,96788.0,96787.0,0.2065872]
[1739095468451,0.006,96788.0,96787.0,0.2065872]
[1739095469349,0.2065979,96782.0,96762.0,0.3608]
[1739095469551,0.5674085,96777.0,96762.0,0.3608]
[1739095469856,0.2066369,96764.0,96762.0,0.3608]
[1739095471042,0.2066369,96764.0,96762.0,0.3638]
[1739095471954,0.2066369,96764.0,96762.0,0.3658]
[1739095475062,0.2066369,96764.0,96762.0,0.005]
[1739095476560,0.00015503,96773.0,96762.0,0.005]
[1739095476757,0.2066384,96763.0,96762.0,0.005]
[1739095477550,0.2066384,96763.0,96762.0,0.002]
[1739095477754,0.2066384,96763.0,96762.0,0.005]
[1739095478559,0.2066384,96763.0,96762.0,0.003]
[1739095478763,0.2066384,96763.0,96762.0,0.005]
[1739095481256,0.25688901,96763.0,96762.0,0.005]
[1739095481755,0.05025061,96763.0,96762.0,0.005]
[1739095481962,0.05025061,96763.0,96762.0,0.2116406]
[1739095482557,0.25688901,96763.0,96762.0,0.005]
[1739095484563,0.2066384,96763.0,96762.0,0.005]
[1739095493369,0.2066258,96769.0,96768.0,0.2066231]
[1739095493970,0.00015503,96773.0,96762.0,0.005]
[1739095494275,0.00015503,96773.0,96772.0,0.2066192]
[1739095495777,0.00215503,96773.0,96772.0,0.2066192]
[1739095496876,0.00315503,96773.0,96772.0,0.2066192]
[1739095497878,0.00315503,96773.0,96772.0,0.21504766]
[1739095500564,0.18416294,96784.0,96783.0,0.2065957]
[1739095500769,0.18416294,96784.0,96783.0,0.5673957]
[1739095501876,0.19516294,96784.0,96783.0,0.5683957]
[1739095502879,0.011,96784.0,96783.0,0.5683957]
[1739095504173,0.011,96784.0,96783.0,0.93736025]
[1739095505577,0.1725671,96786.0,96785.0,0.2065915]
[1739095506488,0.1408073,96798.0,96783.0,0.73128455]
[1739095506688,0.1408073,96798.0,96797.0,0.5673659]
[1739095506988,0.20869498,96807.0,96797.0,0.4338]
[1739095507187,0.2065488,96805.0,96804.0,0.2065505]
[1739095508375,0.00155047,96807.0,96798.0,0.0317]
[1739095508696,0.00155047,96807.0,96806.0,0.5673466]
[1739095509679,0.00255047,96807.0,96806.0,0.5673466]
[1739095510587,0.002,96807.0,96806.0,0.5673466]
[1739095511484,0.00015495,96814.0,96806.0,0.3608]
[1739095511690,0.00015495,96814.0,96813.0,0.2065317]
[1739095511886,0.00015495,96814.0,96813.0,0.2791717]
[1739095513893,0.00015495,96814.0,96813.0,0.2801717]
[1739095517007,0.00015495,96814.0,96813.0,0.2798117]
[1739095517491,0.00015495,96814.0,96813.0,0.2075317]
[1739095517693,0.00015495,96814.0,96813.0,0.2797717]
[1739095518204,0.032,96830.0,96827.0,0.2064999]
[1739095518401,0.0321,96829.0,96827.0,0.2064999]
[1739095518597,0.2385981,96829.0,96827.0,0.2064999]
[1739095519499,0.0321,96829.0,96827.0,0.2064999]
[1739095520497,0.0321,96829.0,96827.0,0.2074999]
[1739095521005,0.0371,96829.0,96827.0,0.21586025]
[1739095521195,0.0371,96829.0,96827.0,0.2064999]
[1739095521392,0.2064997,96828.0,96827.0,0.2114999]
[1739095525009,0.0321,96829.0,96828.0,0.2064997]
[1739095527410,0.0321,96829.0,96828.0,0.2094997]
[1739095527910,0.0303,96832.0,96831.0,0.2064933]
[1739095529113,0.0303,96832.0,96831.0,0.2074933]
[1739095529403,0.0303,96832.0,96831.0,0.2084933]
[1739095533614,0.08051708,96832.0,96831.0,0.2084933]
[1739095537017,0.0303,96832.0,96831.0,0.2084933]
[1739095540911,0.2064892,96833.0,96832.0,0.2064912]
[1739095543307,0.2064892,96833.0,96832.0,0.2074912]
[1739095543712,0.44147204,96833.0,96832.0,0.2074912]
[1739095547326,0.25670688,96833.0,96832.0,0.2074912]
[1739095548823,0.05021768,96833.0,96832.0,0.2074912]
[1739095550429,0.12810855,96835.0,96832.0,0.2074912]
[1739095550822,0.12810855,96835.0,96834.0,0.206487]
[1739095554320,0.07789087,96835.0,96834.0,0.206487]
[1739095555030,0.07789087,96835.0,96834.0,0.278187]
[1739095555821,0.07789087,96835.0,96834.0,0.279187]
[1739095556129,0.08389087,96835.0,96834.0,0.279187]
[1739095557224,0.006,96835.0,96834.0,0.279187]
[1739095557523,0.206436,96858.0,96838.0,0.0516193]
[1739095557730,0.17426,96871.0,96852.0,0.2064486]
[1739095558030,0.2064423,96855.0,96852.0,0.2064486]
[1739095558725,0.00754951,96853.0,96852.0,0.2064486]
[1739095559629,0.00154951,96853.0,96852.0,0.5682486]
[1739095561045,0.20799601,96853.0,96852.0,0.001]
[1739095562725,0.2064657,96844.0,96843.0,0.00015495]
[1739095563937,0.2064657,96844.0,96843.0,0.00415495]
[1739095564136,0.2064657,96844.0,96843.0,0.00915495]
[1739095569026,0.36427129,96844.0,96843.0,0.00915495]
[1739095571525,0.72507129,96844.0,96843.0,0.00915495]
[1739095572730,0.5672657,96844.0,96843.0,0.00915495]
[1739095574940,0.5672657,96844.0,96843.0,0.21562275]
[1739095575243,0.2064657,96844.0,96843.0,0.21562275]
[1739095577344,0.25668066,96844.0,96843.0,0.21562275]
[1739095587449,0.32852838,96844.0,96843.0,0.21562275]
[1739095591452,0.41049883,96844.0,96843.0,0.21562275]
[1739095591859,0.20403313,96844.0,96843.0,0.21562275]
[1739095595164,0.18535196,96844.0,96843.0,0.21562275]
[1739095597651,0.39181766,96844.0,96843.0,0.21562275]
[1739095597958,0.25668066,96844.0,96843.0,0.21562275]
[1739095604759,0.32693645,96844.0,96843.0,0.21562275]
[1739095610765,0.25668066,96844.0,96843.0,0.21562275]
[1739095618182,0.40867893,96844.0,96843.0,0.21562275]
[1739095626482,0.25668066,96844.0,96843.0,0.21562275]
[1739095650503,0.2064657,96844.0,96843.0,0.21562275]
[1739095664222,0.25667696,96844.0,96843.0,0.21562275]
[1739095667417,0.25667696,96844.0,96843.0,0.00915495]
[1739095668625,0.32368409,96844.0,96843.0,0.00915495]
[1739095670033,0.32368409,96844.0,96843.0,0.21562275]
[1739095672331,0.2064657,96844.0,96843.0,0.21562275]
[1739095679942,0.25667651,96844.0,96843.0,0.21562275]
[1739095681135,0.25667651,96844.0,96843.0,0.57642275]
[1739095682735,0.25667651,96844.0,96843.0,0.21562275]
[1739095683031,0.25667651,96844.0,96843.0,0.57642275]
[1739095683434,0.25667651,96844.0,96843.0,0.00915495]
[1739095683435,0.3246485,96844.0,96843.0,0.00915495]
[1739095683738,0.2065062,96825.0,96824.0,0.0678]
[1739095684144,0.2065083,96824.0,96819.0,0.18514941]
[1739095684734,0.2065168,96820.0,96819.0,0.18514941]
[1739095684944,0.2065168,96820.0,96819.0,0.19448396]
[1739095686245,0.2065168,96820.0,96819.0,0.00933455]
[1739095686440,0.004,96825.0,96816.0,0.2065242]
[1739095686645,0.2065212,96818.0,96816.0,0.2065242]
[1739095687141,0.2065232,96817.0,96816.0,0.21599899]
[1739095687537,0.2065232,96817.0,96816.0,0.00947479]
[1739095687731,0.008,96820.0,96814.0,0.00015495]
[1739095687936,0.2065275,96815.0,96814.0,0.00015495]
[1739095689740,0.5673275,96815.0,96814.0,0.00015495]